Cogmind - Beta 9.4 @@@ ROGUE MODE // 2020.03.30 @ 18:03:12 Player: Pimski Result: Self-destructed Performance ------------- Evolutions (4) 2000 Regions Visited (18) 3600 Robots Destroyed (194) 970 Value Destroyed (5005) 5005 Prototype IDs (53) 1060 Alien Tech Used (1) 200 Bonus (984) 984 TOTAL SCORE: 13819 Bonus ------- High Alert Combat Kills 698 Follower Combat Kills 179 Aligned with FarCom 300 Met Data Miner 300 Met Imprinter 300 Friendly Fire -793 Cogmind --------- Core Integrity 771/850 Matter 261/300 Energy 378/400 System Corruption 10% Temperature Cool (4) Movement Flying (27) Location -6/Deep Caves Parts ------- > --- POWER (2) -------- (None) > --- PROPULSION (5) --- Improved VTOL Module Improved VTOL Module Improved Cesium-ion Thruster Nuclear Pulse Thruster > --- UTILITY (7) ------ Large Storage Unit Compact Battery Enhanced Optical Array Advanced Targeting Computer Experimental Core Analyzer Improved Utility Shielding Deep Network Scanner > --- WEAPON (2) ------- (None) > --- INVENTORY (10) --- Improved Cesium-ion Thruster Gravity Neutralizing Apparatus Advanced Targeting Computer 8R-AWN's Boregun Peak State ------------ > --- POWER ------------ Light Angular Momentum Engine Light Angular Momentum Engine > --- PROPULSION ------- Improved VTOL Module Improved VTOL Module Improved VTOL Module Improved Cesium-ion Thruster Improved Cesium-ion Thruster > --- UTILITY ---------- Large Storage Unit Gravity Neutralizing Apparatus Enhanced Optical Array Advanced Targeting Computer Experimental Melee Analysis Suite Experimental Core Analyzer Deep Network Scanner > --- WEAPON ----------- 8R-AWN's Boregun > --- INVENTORY -------- Light Fission Core Improved Cesium-ion Thruster Improved Cesium-ion Thruster Nuclear Pulse Thruster Compact Battery Advanced Sensor Array Advanced Targeting Computer Advanced Weapon Cycler Experimental System Shield Mobile Refinery Mk. CCLXVII [Rating: 89] Favorites ----------- Power Cooled Ion Engine Engine Cooled Ion Engine Power Core Micro Nuclear Core Reactor Cold Fusion Reactor Propulsion Light Treads Treads Light Treads Leg Aluminum Leg Flight Unit Improved VTOL Module Utility High-capacity Storage Unit Device Gravity Neutralizing Apparatus Storage High-capacity Storage Unit Processor Advanced Targeting Computer Hackware Deep Network Scanner Protection Light Armor Plating Weapon Enhanced Autogun Energy Gun Particle Gun Energy Cannon Cooled Plasma Cannon Ballistic Gun Enhanced Autogun Ballistic Cannon Light Cannon Launcher Rocket Launcher Special Weapon Plasma Cutter Slashing Weapon Greatsword Build | -11 -10 -10 -10 -9 -8 -8 -7 -7 -7 -7 -7 -7 -6 -6 -6 -6 -6 -6 ------- Run | Scr Mat Min Exi Min Mat Sto Fac Was Fac Low Low Dat Pro Fac Low Low Zio Dee Slots Evolved 8 | . . . . . 4 . 2 . . . . . . 2 . . . . Power 1 | . . . . . . . . . . . . . . 1 . . . . Propulsion 2 | . . . . . . . 1 . . . . . . 1 . . . . Utility 5 | . . . . . 4 . 1 . . . . . . . . . . . Weapon . | . . . . . . . . . . . . . . . . . . . Parts Attached 147 | 1 12 2 5 4 30 23 19 . . . . 2 7 25 2 . 14 1 Power 15 | . . 1 . 1 1 5 2 . . . . . . 3 . . 2 . Engine 7 | . . 1 . 1 1 1 . . . . . . . 2 . . 1 . Core 5 | . . . . . . 3 1 . . . . . . . . . 1 . Reactor 3 | . . . . . . 1 1 . . . . . . 1 . . . . Propulsion 30 | . 4 . . 1 8 3 3 . . . . . 1 8 1 . . 1 Treads 15 | . 4 . . 1 7 3 . . . . . . . . . . . . Leg . | . . . . . . . . . . . . . . . . . . . Wheel . | . . . . . . . . . . . . . . . . . . . Hover . | . . . . . . . . . . . . . . . . . . . Flight 15 | . . . . . 1 . 3 . . . . . 1 8 1 . . 1 Utility 49 | . 4 . 3 . 11 6 7 . . . . 2 2 3 1 . 10 . Device 10 | . . . . . 4 . 2 . . . . . 1 . 1 . 2 . Storage 12 | . 4 . 3 . 2 . 1 . . . . . 1 . . . 1 . Processor 9 | . . . . . 1 . 1 . . . . . . 2 . . 5 . Hackware 5 | . . . . . . . 3 . . . . 1 . 1 . . . . Protection 13 | . . . . . 4 6 . . . . . 1 . . . . 2 . Artifact . | . . . . . . . . . . . . . . . . . . . Weapon 53 | 1 4 1 2 2 10 9 7 . . . . . 4 11 . . 2 . Energy Gun 3 | . 2 1 . . . . . . . . . . . . . . . . Energy Cannon 4 | . . . . . . 1 3 . . . . . . . . . . . Ballistic Gun 22 | 1 1 . 1 2 9 7 . . . . . . . . . . 1 . Ballistic Cannon 1 | . 1 . . . . . . . . . . . . . . . . . Launcher 5 | . . . 1 . 1 1 . . . . . . 2 . . . . . Special Weapon 2 | . . . . . . . 2 . . . . . . . . . . . Impact Weapon . | . . . . . . . . . . . . . . . . . . . Slashing Weapon 16 | . . . . . . . 2 . . . . . 2 11 . . 1 . Piercing Weapon . | . . . . . . . . . . . . . . . . . . . Special Melee Weapon . | . . . . . . . . . . . . . . . . . . . Unidentified Prototypes 13 | . . . . . 5 2 . . . . . 1 . . 1 . 4 . Parts Lost 17 | . . 1 1 1 5 3 . . . . . . 1 . . . 2 3 Power 4 | . . 1 . . . . . . . . . . . . . . 2 1 Propulsion 3 | . . . . 1 . . . . . . . . 1 . . . . 1 Utility 5 | . . . . . 2 3 . . . . . . . . . . . . Weapon 5 | . . . 1 . 3 . . . . . . . . . . . . 1 Highest Loss Streak 3 | . . 1 1 1 1 1 . . . . . . 1 . . . 2 3 Average Slot Usage (%) 95 | . 95 99 93 94 95 97 92 92 92 92 92 92 91 91 93 93 92 87 Engine 8 | . 14 13 14 14 9 5 . . . . . . . 2 12 12 11 . Core 1 | . . . . . . 3 2 7 7 7 7 7 7 4 . . . 6 Treads 16 | . 26 28 28 28 17 18 . . . . . . . . . . . . Flight 6 | . . . . . . . 21 23 23 23 23 23 22 26 30 31 31 31 Device 4 | . . . . . 3 . 13 15 15 15 15 9 14 13 12 12 10 . Storage 25 | . 24 28 25 28 34 36 9 7 7 7 7 7 13 7 6 6 6 12 Processor 6 | . . . . . 7 5 6 7 7 7 7 7 7 11 12 12 17 18 Hackware 3 | . . . . . . . 20 23 23 23 23 23 16 13 12 12 6 6 Protection 3 | . . . . . 4 10 1 . . . . 5 . . . . 1 6 Energy Gun 2 | . 14 14 5 . . . . . . . . . . . . . . . Ballistic Gun 12 | . 14 14 13 22 17 16 1 . . . . . . . . . 4 . Slashing Weapon 1 | . . . . . . . 1 7 7 7 7 7 6 5 6 6 1 6 Naked Turns . | . . . . . . . . . . . . . . . . . . . Heaviest Build 163 | 10 39 40 77 84 147 163 145 28 28 28 28 29 29 41 40 40 45 31 Greatest Support 46 | 20 40 40 40 40 40 40 40 30 30 30 30 30 30 42 40 46 46 34 Greatest Overweight (x) 47 | . . . 1 2 47 4 3 . . . . . . 1 . . 1 . Average Overweight (x) . | . . . . 1 2 3 . . . . . . . . . . . . Largest Inventory Capacity 42 | 6 16 16 20 20 36 36 42 10 10 10 10 10 10 10 10 10 10 10 Average Capacity 23 | 6 10 16 17 20 34 36 13 10 10 10 10 10 10 10 10 10 10 10 Most Carried 36 | 6 15 16 20 20 36 36 36 10 10 10 10 10 10 10 10 10 10 10 Average Carried 23 | 6 9 15 17 19 32 35 12 10 9 10 10 9 9 9 9 9 9 8 Final Capacity 36 | 6 16 16 20 20 36 36 10 10 10 10 10 10 10 10 10 10 10 10 Final Carried 36 | 6 15 16 20 20 36 36 10 10 10 10 10 10 9 10 9 10 10 4 Class Distribution -------------------- 59% | Hauler-Mutant 15% | Mutant 12% | Hacker-Sprinter 9% | Hacker-Scout Dominant Class ---------------- Mutant | -10/Materials Mutant | -10/Mines Hauler-Mutant | -10/Exiles Hauler-Mutant | -9/Mines Hauler-Mutant | -8/Materials Hauler-Mutant | -8/Storage Hacker-Sprinter | -7/Factory Hacker-Mutant | -7/Waste Hacker-Sprinter | -7/Factory Hacker-Mutant | -7/Lower Caves Hacker-Sprinter | -7/Lower Caves Hacker-Sprinter | -7/Data Miner Hacker-Sprinter | -6/Proximity Caves Hacker-Scout | -6/Factory Hacker-Scout | -6/Lower Caves Hacker-Scout | -6/Lower Caves Hacker-Sprinter | -6/Zion Hacker-Sprinter | -6/Deep Caves Resources | -11 -10 -10 -10 -9 -8 -8 -7 -7 -7 -7 -7 -7 -6 -6 -6 -6 -6 -6 ----------- Run | Scr Mat Min Exi Min Mat Sto Fac Was Fac Low Low Dat Pro Fac Low Low Zio Dee Matter Collected 4059 | 210 179 125 152 83 1288 1163 58 . 132 . . . 141 250 30 . 248 . Remotely . | . . . . . . . . . . . . . . . . . . . Salvage Created 8235 | 94 526 217 146 289 2844 2888 58 . . . . 20 98 763 45 38 209 . Parts 379 | 3 32 6 6 21 125 138 4 . . . . 1 8 20 3 2 10 . Haulers Intercepted 13 | . 1 . . . 4 6 1 . . . . . . 1 . . . . Recyclers Shooed 12 | . 3 1 . . 2 2 . . . . . . . 4 . . . . Parts Field Recycled . | . . . . . . . . . . . . . . . . . . . Retrieved Matter . | . . . . . . . . . . . . . . . . . . . Parts Self-Destructed 7 | . . . . . . . . . . . . . 7 . . . . . Prevented . | . . . . . . . . . . . . . . . . . . . Kills | -11 -10 -10 -10 -9 -8 -8 -7 -7 -7 -7 -7 -7 -6 -6 -6 -6 -6 -6 ------- Run | Scr Mat Min Exi Min Mat Sto Fac Was Fac Low Low Dat Pro Fac Low Low Zio Dee Combat Hostiles Destroyed 128 | . 8 5 4 11 51 40 . . . . . . 8 . . . 1 . Guns 113 | . 8 5 1 11 48 39 . . . . . . . . . . 1 . AOE 15 | . . . 3 . 3 1 . . . . . . 8 . . . . . Classes Destroyed 16 | 1 5 . 1 1 3 2 . . . . . . . . 1 1 1 . Worker 12 | . 1 . . . 3 6 . . . . . . . 2 . . . . Builder 1 | . . . . . . 1 . . . . . . . . . . . . Hauler 13 | . 1 . . . 4 6 1 . . . . . . 1 . . . . Recycler 19 | 1 3 1 . 1 2 6 . . . . . . . 5 . . . . Mechanic 1 | . . . . . 1 . . . . . . . . . . . . . Operator 5 | . . . . . 3 2 . . . . . . . . . . . . Watcher 4 | . 1 . . . 1 2 . . . . . . . . . . . . Swarmer 36 | . 6 3 . 8 7 4 . . . . . . 8 . . . . . Grunt 63 | . 2 2 . 2 36 21 . . . . . . . . . . . . Brawler 6 | . . . . 1 3 2 . . . . . . . . . . . . Researcher 1 | . . . . . . . . . . . . . . . 1 . . . Sentry 17 | . . . . . 5 12 . . . . . . . . . . . . Demolisher 1 | . . . . . . 1 . . . . . . . . . . . . Zionite 5 | . . . . . . . . . . . . . . . . . 5 . Samaritan 1 | . . . . . . . . . . . . . . . . 1 . . Assembled 6 | . . . 6 . . . . . . . . . . . . . . . Savage 1 | . . . . . . . . . . . . . . . . . 1 . Best Kill Streak 13 | 1 7 5 3 5 13 7 1 . . . . 1 4 3 . . 6 . Combat Bots Only 13 | . 6 5 3 4 13 5 . . . . . . 4 . . . 1 . Max Kills in Single Turn 3 | 1 1 1 3 1 2 2 1 . . . . 1 3 1 1 1 2 . Gunslinging 1 | . . . . . 1 1 . . . . . . . . . . . . Exploded 3 | . . . 1 . 1 1 . . . . . . 3 . . . . . Melee . | . . . . . . . . . . . . . . . . . . . Uniques/NPCs Destroyed 2 | . . . 1 . . . . . . . . 1 . . . . . . 8R-AWN (-10/Exiles) Data Miner (-7/Data Miner) Combat | -11 -10 -10 -10 -9 -8 -8 -7 -7 -7 -7 -7 -7 -6 -6 -6 -6 -6 -6 -------- Run | Scr Mat Min Exi Min Mat Sto Fac Was Fac Low Low Dat Pro Fac Low Low Zio Dee Damage Taken 5375 | . 267 184 435 173 1632 1793 57 . . . . 137 67 35 19 95 195 286 Core 722 | . 27 55 37 32 207 236 23 . . . . . 26 18 . . 22 39 Absorbed by Shields . | . . . . . . . . . . . . . . . . . . . Core Remaining (%) 62 | 100 . . . 39 . 19 . . . . . . 93 . . . . . Volleys Fired 432 | 1 36 20 4 12 173 149 6 . . . . . 4 . . . 27 . Largest 2 | 2 2 2 1 2 2 2 1 . . . . . 1 . . . 1 . Hottest 90 | 90 70 70 33 43 50 60 35 . . . . . 39 . . . 30 . Shots Fired 853 | 2 71 40 41 33 335 294 6 . . . . . 4 . . . 27 . Gun 827 | 2 70 40 37 33 330 288 . . . . . . . . . . 27 . Cannon 11 | . 1 . . . . 4 6 . . . . . . . . . . . Launcher 15 | . . . 4 . 5 2 . . . . . . 4 . . . . . Special . | . . . . . . . . . . . . . . . . . . . Kinetic 771 | . 36 20 37 33 330 288 . . . . . . . . . . 27 . Thermal 67 | 2 35 20 . . . 4 6 . . . . . . . . . . . Explosive 15 | . . . 4 . 5 2 . . . . . . 4 . . . . . Electromagnetic . | . . . . . . . . . . . . . . . . . . . Robot Hit Streak 34 | 1 12 9 10 20 34 22 9 . . . . . 1 . . . 6 . Robot Miss Streak 5 | 1 2 2 2 2 3 2 . . . . . . 1 . . . 5 . Penetration Max 2 | . . . . . . . . . . . . . . . . . 2 . Secondary Targets 11 | . . . . . 8 3 . . . . . . . . . . . . Max Gunslinging Chain 1 | . . . . . 1 1 . . . . . . . . . . . . Autonomous 47 | . . . 37 10 . . . . . . . . . . . . . . Shots Hit Robots 682 | 1 51 29 34 25 272 229 3 . . . . 1 1 22 1 1 12 . Core Hits 323 | 2 22 11 19 14 122 105 1 . . . . 1 8 8 1 1 8 . Critical Hits 16 | . . . . . 1 . . . . . . . . 3 1 . 11 . Critical Kills 5 | . . . . . 1 . . . . . . . . . 1 . 3 . Critical Parts Destroyed 9 | . . . . . . . . . . . . . . 2 . . 7 . Melee Attacks 85 | . . . . . . . 3 . 2 3 . 1 8 49 2 7 7 3 Impact . | . . . . . . . . . . . . . . . . . . . Slashing 85 | . . . . . . . 3 . 2 3 . 1 8 49 2 7 7 3 Piercing . | . . . . . . . . . . . . . . . . . . . Sneak Attacks 16 | . . . . . . . . . . . . 1 . 13 1 1 . . Combat Hostiles . | . . . . . . . . . . . . . . . . . . . Follow-up Attacks . | . . . . . . . . . . . . . . . . . . . Damage Inflicted 16364 | 24 639 342 1274 408 4882 4359 101 . . . . 163 729 2677 176 169 421 . Guns 11036 | 24 639 342 863 408 4430 3909 . . . . . . . . . . 421 . Cannons 101 | . . . . . . . 101 . . . . . . . . . . . Explosions 1933 | . . . 411 . 424 369 . . . . . . 729 . . . . . Melee 3185 | . . . . . . . . . . . . 163 . 2677 176 169 . . Ramming 109 | . . . . . 28 81 . . . . . . . . . . . . Kinetic 10458 | . 280 147 863 408 4430 3909 . . . . . . . . . . 421 . Thermal 679 | 24 359 195 . . . . 101 . . . . . . . . . . . Explosive 1933 | . . . 411 . 424 369 . . . . . . 729 . . . . . Electromagnetic . | . . . . . . . . . . . . . . . . . . . Impact . | . . . . . . . . . . . . . . . . . . . Slashing 3185 | . . . . . . . . . . . . 163 . 2677 176 169 . . Piercing . | . . . . . . . . . . . . . . . . . . . Highest Corruption 10 | . . . . . . . . . . . . . . . . . . 10 Average Corruption 10 | . . . . . . . . . . . . . . . . . . 10 Corruption Purged . | . . . . . . . . . . . . . . . . . . . Overload Shots . | . . . . . . . . . . . . . . . . . . . Overflow Damage 465 | . . . 11 . 3 17 . . . . . . 48 386 . . . . Projectiles . | . . . . . . . . . . . . . . . . . . . Explosions 79 | . . . 11 . 3 17 . . . . . . 48 . . . . . Melee 386 | . . . . . . . . . . . . . . 386 . . . . Knockbacks . | . . . . . . . . . . . . . . . . . . . Impact . | . . . . . . . . . . . . . . . . . . . Kinetic . | . . . . . . . . . . . . . . . . . . . Secondary . | . . . . . . . . . . . . . . . . . . . Self-Inflicted Damage 10 | . . . . . . 10 . . . . . . . . . . . . Shots 1 | . . . . . . 1 . . . . . . . . . . . . Rammed 9 | . . . . . 4 5 . . . . . . . . . . . . Targets Rammed 12 | . . . . . 5 7 . . . . . . . . . . . . Kicked . | . . . . . . . . . . . . . . . . . . . Crushed 3 | . . . . . 1 2 . . . . . . . . . . . . Highest Temperature 132 | 30 132 120 . 20 60 101 . . . . . . . 11 8 43 114 3 Average Temperature 30 | 17 46 55 . 8 12 20 . . . . . . . 10 3 23 40 2 Received Heat Transfer 1661 | . 66 66 . 6 747 702 6 . . . . 18 . 12 9 . 29 . Siege Activations . | . . . . . . . . . . . . . . . . . . . Robots Corrupted . | . . . . . . . . . . . . . . . . . . . Combat Hostiles . | . . . . . . . . . . . . . . . . . . . Parts Fried . | . . . . . . . . . . . . . . . . . . . Impact Corruptions . | . . . . . . . . . . . . . . . . . . . Robots Melted . | . . . . . . . . . . . . . . . . . . . Combat Hostiles . | . . . . . . . . . . . . . . . . . . . Parts Melted 1 | . . 1 . . . . . . . . . . . . . . . . Heat Transferred 1722 | 62 955 555 . . . . 150 . . . . . . . . . . . Parts Sabotaged . | . . . . . . . . . . . . . . . . . . . Parts Stolen . | . . . . . . . . . . . . . . . . . . . Parts Stripped . | . . . . . . . . . . . . . . . . . . . Power Chain Reactions . | . . . . . . . . . . . . . . . . . . . Missiles Intercepted . | . . . . . . . . . . . . . . . . . . . Alert | -11 -10 -10 -10 -9 -8 -8 -7 -7 -7 -7 -7 -7 -6 -6 -6 -6 -6 -6 ------- Run | Scr Mat Min Exi Min Mat Sto Fac Was Fac Low Low Dat Pro Fac Low Low Zio Dee Peak Influence 880 | 5 242 147 . 245 880 646 307 122 135 . . . . 712 . . . . Average Influence 324 | 5 81 44 . 93 419 444 218 109 112 . . . . 287 . . . . Maximum Alert Level 3 | . 1 . . 1 3 2 1 . . . . . . 3 . . . . Low Security (%) 36 | 100 86 100 . 95 31 . 36 100 100 . . . . 19 . . . . Level 1 25 | . 13 . . 4 17 34 63 . . . . . . 59 . . . . Level 2 30 | . . . . . 27 65 . . . . . . . 20 . . . . Level 3 7 | . . . . . 23 . . . . . . . . . . . . . Level 4 . | . . . . . . . . . . . . . . . . . . . Level 5 . | . . . . . . . . . . . . . . . . . . . High Security . | . . . . . . . . . . . . . . . . . . . Max Security . | . . . . . . . . . . . . . . . . . . . Squads Dispatched 16 | . . . . . 7 4 1 . . . . . . 4 . . . . Investigation 3 | . . . . . 1 1 . . . . . . . 1 . . . . Extermination 2 | . . . . . . . 1 . . . . . . 1 . . . . Reinforcement 7 | . . . . . 3 2 . . . . . . . 2 . . . . Assault 4 | . . . . . 3 1 . . . . . . . . . . . . Garrison . | . . . . . . . . . . . . . . . . . . . Intercept . | . . . . . . . . . . . . . . . . . . . Construction Impeded . | . . . . . . . . . . . . . . . . . . . Haulers Reinforced . | . . . . . . . . . . . . . . . . . . . Stealth | -11 -10 -10 -10 -9 -8 -8 -7 -7 -7 -7 -7 -7 -6 -6 -6 -6 -6 -6 --------- Run | Scr Mat Min Exi Min Mat Sto Fac Was Fac Low Low Dat Pro Fac Low Low Zio Dee Distress Signals 4 | . . 1 . . . 2 . . . . . . . 1 . . . . Communications Jammed . | . . . . . . . . . . . . . . . . . . . Distress Signals . | . . . . . . . . . . . . . . . . . . . Times Spotted 248 | . 16 5 5 11 89 52 6 5 . . . 4 10 12 4 4 25 . Peak Tracking Total 15 | . 8 3 6 4 7 6 3 5 . . . 4 4 3 4 4 15 . Tactical Retreats 18 | . . . . . 9 2 1 . . . . . . 3 . 1 2 . Traps | -11 -10 -10 -10 -9 -8 -8 -7 -7 -7 -7 -7 -7 -6 -6 -6 -6 -6 -6 ------- Run | Scr Mat Min Exi Min Mat Sto Fac Was Fac Low Low Dat Pro Fac Low Low Zio Dee Traps Triggered 6 | . 1 . . . 2 1 2 . . . . . . . . . . . Indirectly . | . . . . . . . . . . . . . . . . . . . Trap Hack Attempts . | . . . . . . . . . . . . . . . . . . . Triggered . | . . . . . . . . . . . . . . . . . . . Disarmed . | . . . . . . . . . . . . . . . . . . . Reprogrammed . | . . . . . . . . . . . . . . . . . . . Reused . | . . . . . . . . . . . . . . . . . . . Traps Extracted . | . . . . . . . . . . . . . . . . . . . Installed 2 | . . 1 1 . . . . . . . . . . . . . . . Triggered 2 | . . . . . . . . . . . . . 1 . 1 . . . Machines | -11 -10 -10 -10 -9 -8 -8 -7 -7 -7 -7 -7 -7 -6 -6 -6 -6 -6 -6 ---------- Run | Scr Mat Min Exi Min Mat Sto Fac Was Fac Low Low Dat Pro Fac Low Low Zio Dee Machines Disabled 11 | . . . 4 . 3 4 . . . . . . . . . . . . Max in Single Turn 2 | . . . 2 . 1 1 . . . . . . . . . . . . Garrison Access 3 | . . . . . . 1 . . . . . . . 2 . . . . Machines Sabotaged . | . . . . . . . . . . . . . . . . . . . Garrisons Compromised . | . . . . . . . . . . . . . . . . . . . Overloaded Fab Kills . | . . . . . . . . . . . . . . . . . . . Fab Network Shutdowns 1 | . . . . . . . . . . . . . . 1 . . . . Hacking | -11 -10 -10 -10 -9 -8 -8 -7 -7 -7 -7 -7 -7 -6 -6 -6 -6 -6 -6 --------- Run | Scr Mat Min Exi Min Mat Sto Fac Was Fac Low Low Dat Pro Fac Low Low Zio Dee Machines Accessed 53 | . 5 1 2 . 5 15 5 . 4 . . 4 . 12 . . . . Terminals 32 | . 4 1 . . 3 14 4 . . . . . . 6 . . . . Fabricators 5 | . . . . . . . . . 2 . . . . 3 . . . . Repair Stations 3 | . 1 . . . 1 . . . . . . . . 1 . . . . Recycling Units 1 | . . . . . 1 . . . . . . . . . . . . . Scanalyzers 3 | . . . . . . . 1 . 2 . . . . . . . . . Garrison Access 3 | . . . . . . 1 . . . . . . . 2 . . . . Total Hacks 202 | . 17 6 2 . 14 40 20 . 19 . . 29 . 55 . . . . Successful 139 | . 12 3 2 . 6 22 8 . 15 . . 29 . 42 . . . . Failed 63 | . 5 3 . . 8 18 12 . 4 . . . . 13 . . . . Catastrophic 9 | . . . . . 1 5 2 . . . . . . 1 . . . . Database Lockouts . | . . . . . . . . . . . . . . . . . . . Manual 96 | . 7 6 1 . 6 31 13 . 3 . . . . 29 . . . . Terminals 113 | . 13 6 . . 10 39 17 . . . . . . 28 . . . . Fabricators 27 | . . . . . . . . . 9 . . . . 18 . . . . Repair Stations 13 | . 4 . . . 3 . . . . . . . . 6 . . . . Recycling Units 1 | . . . . . 1 . . . . . . . . . . . . . Scanalyzers 13 | . . . . . . . 3 . 10 . . . . . . . . . Garrison Access 4 | . . . . . . 1 . . . . . . . 3 . . . . Terminal Hacks 73 | . 7 2 2 . 4 11 5 . . . . 29 . 13 . . . . Record 12 | . . . 1 . . . . . . . . 11 . . . . . . Part Schematic 12 | . . . . . . 1 1 . . . . 6 . 4 . . . . Robot Schematic 9 | . . . . . . . . . . . . 9 . . . . . . Robot Analysis 3 | . 3 . . . . . . . . . . . . . . . . . Prototype ID Bank 9 | . 3 2 . . . 1 . . . . . 3 . . . . . . Open Door 3 | . . . . . . 3 . . . . . . . . . . . . Branch Access Points 4 | . 1 . . . 1 . 1 . . . . . . 1 . . . . Terminal Index 2 | . . . . . . 1 1 . . . . . . . . . . . Fabricator Index 2 | . . . . . . . 1 . . . . . . 1 . . . . Repair Station Index 1 | . . . . . . . . . . . . . . 1 . . . . Unreport Threat 6 | . . . . . 2 3 . . . . . . . 1 . . . . Locate Traps 2 | . . . . . . 1 . . . . . . . 1 . . . . Recall Extermination 2 | . . . . . . . 1 . . . . . . 1 . . . . Hauler Manifests 4 | . . . . . 1 1 . . . . . . . 2 . . . . Zone Layout 1 | . . . . . . . . . . . . . . 1 . . . . EX-Prototype ID Bank 1 | . . . 1 . . . . . . . . . . . . . . . Fabricator Hacks 11 | . . . . . . . . . 3 . . . . 8 . . . . Load Schematic 5 | . . . . . . . . . 2 . . . . 3 . . . . Build 6 | . . . . . . . . . 1 . . . . 5 . . . . Repair Station Hacks 11 | . 4 . . . 2 . . . . . . . . 5 . . . . Scan Component 6 | . 2 . . . 1 . . . . . . . . 3 . . . . Repair 5 | . 2 . . . 1 . . . . . . . . 2 . . . . Recycling Unit Hacks . | . . . . . . . . . . . . . . . . . . . Scanalyzer 12 | . . . . . . . 2 . 10 . . . . . . . . . Insert Component 5 | . . . . . . . 1 . 4 . . . . . . . . . Analyze 7 | . . . . . . . 1 . 6 . . . . . . . . . Garrison Access Hacks 2 | . . . . . . 1 . . . . . . . 1 . . . . Seal Access 2 | . . . . . . 1 . . . . . . . 1 . . . . Unauthorized Hacks 73 | . 2 2 . . 1 28 5 . 5 . . . . 30 . . . . Terminals 22 | . 1 1 . . . 10 1 . . . . . . 9 . . . . Track 3 | . . . . . . 1 . . . . . . . 2 . . . . Assimilate 1 | . . . . . . . . . . . . . . 1 . . . . Botnet 14 | . 1 1 . . . 7 1 . . . . . . 4 . . . . Disrupt 3 | . . . . . . 2 . . . . . . . 1 . . . . Operators 1 | . . . . . . . . . . . . . . 1 . . . . Fabricators 7 | . . . . . . . . . 2 . . . . 5 . . . . Report 1 | . . . . . . . . . . . . . . 1 . . . . Prioritize 1 | . . . . . . . . . . . . . . 1 . . . . Siphon 5 | . . . . . . . . . 2 . . . . 3 . . . . Repair Stations . | . . . . . . . . . . . . . . . . . . . Recycling Units . | . . . . . . . . . . . . . . . . . . . Scanalyzers . | . . . . . . . . . . . . . . . . . . . Garrison Access 1 | . . . . . . . . . . . . . . 1 . . . . Jam 1 | . . . . . . . . . . . . . . 1 . . . . Data Cores Recovered . | . . . . . . . . . . . . . . . . . . . Used . | . . . . . . . . . . . . . . . . . . . Hacking Detections 43 | . 4 1 . . 5 14 5 . 4 . . . . 10 . . . . Full Trace Events . | . . . . . . . . . . . . . . . . . . . Feedback Events . | . . . . . . . . . . . . . . . . . . . Feedback Blocked . | . . . . . . . . . . . . . . . . . . . Robot Schematics Acquired 9 | . . . . . . . . . . . . 9 . . . . . . Robots Built . | . . . . . . . . . . . . . . . . . . . Matter . | . . . . . . . . . . . . . . . . . . . Time . | . . . . . . . . . . . . . . . . . . . Total Robot Build Rating . | . . . . . . . . . . . . . . . . . . . Part Schematics Acquired 17 | . . . . . . 1 2 . 4 . . 6 . 4 . . . . Parts Built 6 | . . . . . . . . . 2 . . . . 4 . . . . Matter 865 | . . . . . . . . . 109 . . . . 756 . . . . Time 371 | . . . . . . . . . 36 . . . . 335 . . . . Total Part Build Rating 22 | . . . . . . . . . 6 . . . . 16 . . . . Parts Repaired 5 | . 2 . . . 1 . . . . . . . . 2 . . . . Time 138 | . 52 . . . 26 . . . . . . . . 60 . . . . Parts Recycled . | . . . . . . . . . . . . . . . . . . . Recycled Matter . | . . . . . . . . . . . . . . . . . . . Retrieved Matter . | . . . . . . . . . . . . . . . . . . . Retrieved Components . | . . . . . . . . . . . . . . . . . . . Parts Scanalyzed 5 | . . . . . . . 1 . 4 . . . . . . . . . Part Schematics Acquired 5 | . . . . . . . 1 . 4 . . . . . . . . . Parts Damaged 1 | . . . . . . . . . 1 . . . . . . . . . Bothacking | -11 -10 -10 -10 -9 -8 -8 -7 -7 -7 -7 -7 -7 -6 -6 -6 -6 -6 -6 ------------ Run | Scr Mat Min Exi Min Mat Sto Fac Was Fac Low Low Dat Pro Fac Low Low Zio Dee Used RIF Installer . | . . . . . . . . . . . . . . . . . . . Robots Hacked . | . . . . . . . . . . . . . . . . . . . Non-combat . | . . . . . . . . . . . . . . . . . . . Combat . | . . . . . . . . . . . . . . . . . . . Robot Hacks Applied . | . . . . . . . . . . . . . . . . . . . Relay Couplers Released . | . . . . . . . . . . . . . . . . . . . Robots Rewired . | . . . . . . . . . . . . . . . . . . . Allies Hacked . | . . . . . . . . . . . . . . . . . . . Hacks Repelled . | . . . . . . . . . . . . . . . . . . . Allies | -11 -10 -10 -10 -9 -8 -8 -7 -7 -7 -7 -7 -7 -6 -6 -6 -6 -6 -6 -------- Run | Scr Mat Min Exi Min Mat Sto Fac Was Fac Low Low Dat Pro Fac Low Low Zio Dee Total Allies 14 | . . . . 3 . 10 . . . . . . . 1 . . . . Largest Group 10 | . . . . 3 3 10 . . . . . . . 1 . . . . Highest-Rated Group 173 | . . . . 40 40 173 . . . . . . . 26 . . . . Highest-Rated Ally 29 | . . . . 16 16 29 . . . . . . . 26 . . . . Total Orders 7 | . . . . . . . . . . . . . . 7 . . . . GOTO 4 | . . . . . . . . . . . . . . 4 . . . . FOLLOW 3 | . . . . . . . . . . . . . . 3 . . . . Ally Attacks 65 | . . . . . 44 21 . . . . . . . . . . . . Total Damage 839 | . . . . . 526 313 . . . . . . . . . . . . Kills 6 | . . . . . 5 1 . . . . . . . . . . . . Allies Corrupted . | . . . . . . . . . . . . . . . . . . . Allies Melted . | . . . . . . . . . . . . . . . . . . . Intel | -11 -10 -10 -10 -9 -8 -8 -7 -7 -7 -7 -7 -7 -6 -6 -6 -6 -6 -6 ------- Run | Scr Mat Min Exi Min Mat Sto Fac Was Fac Low Low Dat Pro Fac Low Low Zio Dee Robot Analysis Total 3 | . 3 . . . . . . . . . . . . . . . . . Derelict Logs Recovered 6 | . . 1 . 2 . . . . . . . . 2 . . . 1 . Drone Launches . | . . . . . . . . . . . . . . . . . . . Drone Recoveries . | . . . . . . . . . . . . . . . . . . . Exploration | -11 -10 -10 -10 -9 -8 -8 -7 -7 -7 -7 -7 -7 -6 -6 -6 -6 -6 -6 ------------- Run | Scr Mat Min Exi Min Mat Sto Fac Was Fac Low Low Dat Pro Fac Low Low Zio Dee Turns Passed 10956 | 10 665 678 1105 454 2841 2488 329 27 174 109 66 81 233 875 93 89 586 53 Spaces Moved 8219 | 5 279 377 575 221 967 807 569 74 268 212 171 105 415 1648 265 155 1004 102 Core 1 | . . . . . 1 . . . . . . . . . . . . . Treads 3213 | . 258 377 575 221 966 807 9 . . . . . . . . . . . Legs 26 | 5 21 . . . . . . . . . . . . . . . . . Wheels . | . . . . . . . . . . . . . . . . . . . Hover . | . . . . . . . . . . . . . . . . . . . Flight 4979 | . . . . . . . 560 74 268 212 171 105 415 1648 265 155 1004 102 Fastest Speed 23 | 120 120 160 160 180 200 225 29 29 29 29 29 29 29 26 26 23 23 23 Average Speed 95 | 120 156 160 177 180 221 233 32 29 29 29 29 29 29 26 26 25 24 23 Slowest Speed 2400 | 120 160 160 180 200 2400 250 239 29 29 29 29 29 29 96 26 26 91 27 Overloaded Moves . | . . . . . . . . . . . . . . . . . . . Propulsion Burnouts . | . . . . . . . . . . . . . . . . . . . Robots Hopped 14 | . . . . . . . 3 . . . . 3 . 6 . 1 1 . Cave-ins Triggered 1 | . . . . . . . . . . . . . . . . . . 1 Exploration Rate (%) 50 | 2 52 73 67 51 76 95 21 70 14 40 42 77 65 32 51 39 86 8 Regions Visited 18 Branch Regions 12 Pre-discovered Areas 10 | . . 1 1 1 . . . . . . . 1 . . . . 6 . Known Exits Taken 11 | . 1 . . . 1 . . . 1 1 1 1 1 1 1 1 1 . Unknown Exits Taken 5 | 1 . 1 1 1 . 1 . . . . . . . . . . . . Scrap Searched 12 | . . 1 . 3 . . . . . 3 . . 2 . 2 . 1 . Spaces Dug 93 | . . . . . . . 6 . 2 3 . . 45 24 1 6 3 3 Terrain Destroyed 239 | . . . 44 3 42 20 6 . 2 3 . . 82 24 1 6 3 3 Melee 53 | . . . . . . . 3 . 2 3 . . 8 24 1 6 3 3 Projectile 30 | . . . 23 3 . 1 3 . . . . . . . . . . . AOE 156 | . . . 21 . 42 19 . . . . . . 74 . . . . . Actions | -11 -10 -10 -10 -9 -8 -8 -7 -7 -7 -7 -7 -7 -6 -6 -6 -6 -6 -6 --------- Run | Scr Mat Min Exi Min Mat Sto Fac Was Fac Low Low Dat Pro Fac Low Low Zio Dee Total 10587 | 6 436 412 669 256 1445 1230 715 78 361 252 186 150 507 1981 283 188 1303 129 Wait 1386 | . 86 9 36 13 215 180 82 5 86 38 16 41 69 228 13 27 233 9 Move 8174 | 4 278 376 574 220 966 806 563 73 267 211 170 99 414 1635 264 152 1001 101 Hop 13 | . . . . . . . 3 . . . . 2 . 6 . 1 1 . Pick Up 136 | . 15 2 24 4 32 27 4 . 3 . . 2 . 12 . 1 6 4 Fast Attach 49 | . 4 1 1 . 10 8 2 . . . . 1 3 10 2 . 7 . Attach 65 | . 3 . 2 3 12 6 16 . . . . 1 3 13 1 . 5 . Detach 21 | . . . 1 . 5 . 3 . . . . . 2 9 . . 1 . Swap 34 | 1 5 1 2 1 8 9 1 . . . . . 1 2 . . 2 1 Drop 176 | . 9 2 24 3 19 37 32 . 3 . . 3 3 17 1 . 13 10 Fire 432 | 1 36 20 4 12 173 149 6 . . . . . 4 . . . 27 . Melee 85 | . . . . . . . 3 . 2 3 . 1 8 49 2 7 7 3 Ram . | . . . . . . . . . . . . . . . . . . . Kick . | . . . . . . . . . . . . . . . . . . . Crush 12 | . . . . . 5 7 . . . . . . . . . . . . Escape Stasis 1 | . . . . . . . . . . . . . . . . . . 1 Rewire 1 | . . . . . . 1 . . . . . . . . . . . . Trap 2 | . . 1 1 . . . . . . . . . . . . . . . Miscellaneous . | . . . . . . . . . . . . . . . . . . . Route ------- -11/Scrapyard -10/Materials (discovered 2 exits: [*Mat] / *Min) -10/Mines (discovered 2 exits: [*Mat] / *Exi) -10/Exiles -9/Mines -8/Materials (discovered 5 exits: *Fac x3 / *Sto x2) -8/Storage -7/Factory (discovered 3 exits: *Fac / *Low x2) -7/Waste -7/Factory -7/Lower Caves -7/Lower Caves -7/Data Miner -6/Proximity Caves -6/Factory (discovered 6 exits: *Fac x2 / *Low x2 / Ext x2) -6/Lower Caves -6/Lower Caves -6/Zion (discovered 2 exits: *Dee / [*Pro]) -6/Deep Caves History --------- Turn | Location | Event 5 | -11/Scrapyard | Discovered new exit (range 3) 11 | -11/Scrapyard | Entered Materials 260 | -10/Materials | Identified exit to Mines 318 | -10/Materials | Build established: Mutant 431 | -10/Materials | Discovered new exit (range 4) 519 | -10/Materials | Repaired Lgt. Treads 547 | -10/Materials | Repaired Lgt. Treads 676 | -10/Materials | Entered Mines 697 | -10/Mines | Discovered new exit (range 9) 808 | -10/Mines | Received a Rocket Launcher from a helpful Derelict 1018 | -10/Mines | Found a hidden stash of uninstalled traps 1062 | -10/Mines | Deemed a non-threat by the Exiles lab entrance 1062 | -10/Mines | Discovered new exit (range 5) 1354 | -10/Mines | Entered Exiles 1394 | -10/Exiles | Met 8R-AWN 1420 | -10/Exiles | Met EX-HEX 1521 | -10/Exiles | Met EX-DEC 1552 | -10/Exiles | Learned location of Zion (-6) 1710 | -10/Exiles | Met EX-BIN 1736 | -10/Exiles | Aligned with FarCom system 1737 | -10/Exiles | Given EX-Vault access code 1764 | -10/Exiles | Build established: Hauler-Mutant 1782 | -10/Exiles | Opened EX-Vault 1797 | -10/Exiles | Found AWS/Gauss 1838 | -10/Exiles | Warned to stay clear of 0b10 Research branches 2067 | -10/Exiles | Discovered new exit (range 15) 2195 | -10/Exiles | Attacked by the Exiles 2238 | -10/Exiles | Destroyed 8R-AWN 2243 | -10/Exiles | Found Prototype Ballistic Gun 2245 | -10/Exiles | Found Prototype Protection 2459 | -10/Exiles | Left Exiles lab with AWS/Gauss 2459 | -10/Exiles | Entered Mines 2594 | -9/Mines | Core integrity fell below 50% 2731 | -9/Mines | Learned Materials stockpile data 2745 | -9/Mines | Discovered new exit (range 14) 2900 | -9/Mines | Assisted by bots powering up and referring to "LRC-V3" 2913 | -9/Mines | Entered Materials 2913 | -8/Materials | Accompanied by 3 allies 2913 | -8/Materials | Evolved 4 slots: Utility x4 3203 | -8/Materials | Repaired Lgt. Treads 3204 | -8/Materials | Identified 8R-AWN's Armor/EX 3415 | -8/Materials | Identified 8R-AWN's Boregun 3543 | -8/Materials | Discovered new exit (range 3) 4341 | -8/Materials | Destroyed 13 combat bots 4513 | -8/Materials | First assault squad dispatched 4644 | -8/Materials | Discovered new exit (range 11) 5056 | -8/Materials | Discovered new exit (range 5) 5197 | -8/Materials | Identified exit to Storage 5754 | -8/Materials | Entered Storage 6571 | -8/Storage | Core integrity fell below 50% 6665 | -8/Storage | Discovered new exit (range 14) 8137 | -8/Storage | Assisted by bots powering up and referring to "LRC-V3" 8154 | -8/Storage | First assault squad dispatched 8190 | -8/Storage | Core integrity fell below 20% 8242 | -8/Storage | Entered Factory 8242 | -7/Factory | Evolved 2 slots: Propulsion x1, Utility x1 8353 | -7/Factory | Identified exit to Lower Caves 8540 | -7/Factory | Discovered new exit (range 3) 8541 | -7/Factory | Identified exit to Factory 8571 | -7/Factory | Sucked down chute 8571 | -7/Factory | Entered Waste 8578 | -7/Waste | Spotted C-40 Crusher 8582 | -7/Waste | Spotted C-40 Crusher 8590 | -7/Waste | Spotted C-40 Crusher 8591 | -7/Waste | Spotted C-40 Crusher 8593 | -7/Waste | Discovered new exit (range 16) 8593 | -7/Waste | Spotted C-40 Crusher 8597 | -7/Waste | Identified exit to Factory 8598 | -7/Waste | Entered Factory 8767 | -7/Factory | Fabricated Imp. Utility Shielding (x2) 8771 | -7/Factory | Discovered exit to Lower Caves (range 4) 8772 | -7/Factory | Entered Lower Caves 8867 | -7/Lower Caves | Encountered a Warlord checkpoint 8880 | -7/Lower Caves | Discovered new exit (range 5) 8880 | -7/Lower Caves | Identified exit to Lower Caves 8881 | -7/Lower Caves | Entered another Lower Caves area 8946 | -7/Lower Caves | Discovered new exit (range 2) 8947 | -7/Lower Caves | Identified exit to Data Miner 8947 | -7/Lower Caves | Entered Data Miner 8947 | -7/Data Miner | Discovered new exit (range 6) 8949 | -7/Data Miner | Identified exit to Proximity Caves 8953 | -7/Data Miner | Met Data Miner 8958 | -7/Data Miner | Learned location of Section 7 (-2) 8958 | -7/Data Miner | Acquired the access code to Warlord's prototype stash 8989 | -7/Data Miner | Received God Mode back door access code from Data Miner 9015 | -7/Data Miner | Destroyed Data Miner 9019 | -7/Data Miner | Found Prototype Hackware 9019 | -7/Data Miner | Identified Deep Network Scanner 9028 | -7/Data Miner | Entered Proximity Caves 9060 | -6/Proximity Caves | Learned Factory terminal intel 9188 | -6/Proximity Caves | Learned Factory emergency access door positions 9222 | -6/Proximity Caves | Build established: Hacker-Sprinter 9251 | -6/Proximity Caves | Spotted 0A-K8U(f) 9252 | -6/Proximity Caves | Encountered a Master Thief 9256 | -6/Proximity Caves | Spotted ID-NRC(f) 9257 | -6/Proximity Caves | Encountered a Master Thief 9258 | -6/Proximity Caves | Discovered exit to Factory (range 5) 9261 | -6/Proximity Caves | Entered Factory 9261 | -6/Factory | Evolved 2 slots: Power x1, Propulsion x1 9263 | -6/Factory | Loaded intel: 21 terminal locations 9440 | -6/Factory | Identified exit to Lower Caves 9440 | -6/Factory | Identified exit to Extension 9574 | -6/Factory | Discovered new exit (range 16) 9598 | -6/Factory | Repaired Broken Greatsword 9640 | -6/Factory | Fabricated Imp. Cesium-ion Thruster? 9708 | -6/Factory | Repaired Imp. VTOL Module? 9730 | -6/Factory | Fabricated Imp. Cesium-ion Thruster (x1) 9789 | -6/Factory | Build established: Hacker-Scout 9797 | -6/Factory | Fabricated Imp. Cesium-ion Thruster (x1) 9907 | -6/Factory | Fabricated Imp. Cesium-ion Thruster (x1) 9992 | -6/Factory | Discovered new exit (range 5) 9993 | -6/Factory | Identified exit to Factory 10059 | -6/Factory | Local fabrication network quarantined 10136 | -6/Factory | Entered Lower Caves 10145 | -6/Lower Caves | Found Alien Artifact 10145 | -6/Lower Caves | Identified Core Expander 10145 | -6/Lower Caves | Installed Core Expander, added new Propulsion slot 10163 | -6/Lower Caves | Encountered a Warlord checkpoint 10227 | -6/Lower Caves | Discovered new exit (range 7) 10228 | -6/Lower Caves | Identified exit to Lower Caves 10229 | -6/Lower Caves | Entered another Lower Caves area 10283 | -6/Lower Caves | Spotted B-75 Beast 10302 | -6/Lower Caves | Discovered new exit (range 11) 10304 | -6/Lower Caves | Identified exit to Zion 10318 | -6/Lower Caves | Entered Zion 10333 | -6/Zion | Discovered new exit (range 22) 10384 | -6/Zion | Learned location of Warlord (-5) 10389 | -6/Zion | Learned location of 1 exit from Factory 10395 | -6/Zion | Found Prototype Processor 10395 | -6/Zion | Identified Exp. Target Analyzer 10397 | -6/Zion | Found Prototype Processor 10397 | -6/Zion | Identified Exp. Core Analyzer 10400 | -6/Zion | Found Prototype Hackware 10413 | -6/Zion | Learned location of Quarantine (-3) 10449 | -6/Zion | Discovered new exit (range 3) 10456 | -6/Zion | Identified exit to Deep Caves 10456 | -6/Zion | Saw the warning signs outside the Deep Caves entrance 10546 | -6/Zion | Received a visual enhancement algorithm 10559 | -6/Zion | Found Prototype Device 10559 | -6/Zion | Identified Mobile Refinery Mk. CCLXVII 10785 | -6/Zion | Found Prototype Processor 10785 | -6/Zion | Identified Exp. Melee Analysis Suite 10823 | -6/Zion | Attacked by Zionites 10836 | -6/Zion | Build established: Hacker-Sprinter 10904 | -6/Zion | Entered Deep Caves 10955 | -6/Deep Caves | Crushed by falling debris 10956 | -6/Deep Caves | System corruption reached 10% 10957 | -6/Deep Caves | Self-destructed Last Messages --------------- 10941_ Dropped Adv. Sensor Array. 10941_ Dropped Prototype Hackware. 10943_ Dropped Imp. Cesium-ion Thruster. 10945_ Dropped Gravity Neutralizing Apparatus. 10945_ Dropped Adv. Targeting Computer. 10946_ Dropped Adv. Target Analyzer. 10946_ Acquired Imp. Cesium-ion Thruster. 10947_ Dropped Adv. Weapon Cycler. 10948_ Acquired Adv. Targeting Computer. 10949_ Acquired Adv. Target Analyzer. 10951_ Dropped Adv. Target Analyzer. 10951_ Acquired Gravity Neutralizing Apparatus. 10955_ The unstable cave ceiling collapses. 10955_ Crushed by falling debris. 10955_ Lgt. Fission Core destroyed. 10955_ System corrupted by crushing effect (+5). 10955_ Imp. VTOL Module destroyed. 10955_ System corrupted by crushing effect (+3). 10955_ Greatsword destroyed. 10955_ System corrupted by crushing effect (+2). Map ----- +----------------------------------------------------+ | ????????????????????????????????????????????????? | | ????????????????????????????????????????????????? | | ????????????????????????????????????????????????? | | ???????????????????????????##???????????????????? | | ?????????????????????###??# ???????????????????? | | ????????????????????## ### #???????????????????? | | ???????????????????## #???????????????????? | | ??????????????????## "" #???????????????????? | | ?????????????????## """ #???????????????????? | | ????????????????? " ###?????????????????? | | ?????????????????? ##????????????????? | | ??????????????????? #????????????????? | | ???????????????????? #????????????????? | | ????????????????????? #????????????????? | | ?????????????????????? # #?????######?????? | | ??????????????????????? ## #????## ##????? | | ???????????????????????# #?# #?#### ##???? | | ???????????????????????#"##?# ### ##??? | | ???????????????????????## ### ## #??? | | ????????????????????????##### #??? | | ?????????????????????????## #??? | | ?????????????????????????# #???? | | ?????????????????????????# # ##???? | | ?????????????????????????# # #### #????? | | ????????????????????????## # #### ##???? | | ???????????????????????##@ # ## ###?? | | ??????????????????????## # # #?? | | ?????????????????????## ## ##?? | | ????????????????????## ### #####??? | | ????????????????????# ! ###?# # #??????? | | ????????????????????#!= #???# #### ####???? | | ????????????????????#!!= #???# #??## #???? | | ????????????????????#######???# ##?## #???? | | ??????????????????????????????# ### #???? | | ??????????????????????????????# ## #???? | | ??????????????????????????????# ### #???? | | ??????????????????????????????####?# ##???? | | ???????????????????????????????????## ##????? | | ????????????????????????????????????## #?????? | | ?????????????????????????????????????# #????? | | ?????????????????????????????????????# #????? | | ?????????????????????????????????????## ##????? | | ???????????????????????????????????????####?????? | | ????????????????????????????????????????????????? | | ????????????????????????????????????????????????? | | ????????????????????????????????????????????????? | | | | | | | | | +----------------------------------------------------+ Best States ------------- Heat Dissipation 53 Energy Generation 31 Energy Capacity 550 Matter Stores 300 Matter Capacity 300 Sight Range 22 Robot Scan Range 16 Terrain Scan Density 10 Additional Mass Support 12 Armor Coverage 1000 Resistance: EX 90 Utility Shielding 66 Evasion (%) 65 Targeting Accuracy 16 Core Analysis 15 Recoil Reduction 4 Offensive Hacking 35 Defensive Hacking 12 Item Schematics ----------------- System Shield | -8/Storage | Hacked Imp. Utility Shielding | -7/Factory | Hacked Adv. Weapon Cycler | -7/Factory | Scanalyzed Hacking Suite | -7/Factory | Scanalyzed Imp. VTOL Module | -7/Factory | Scanalyzed Enh. Optical Array | -7/Factory | Scanalyzed Adv. Targeting Computer | -7/Factory | Scanalyzed Combat Drone Bay | -7/Data Miner | Free Lgt. Regenerative Plating | -7/Data Miner | Free Triangulator | -7/Data Miner | Free Exp. Terrain Scan Processor | -7/Data Miner | Free Exp. Terrain Scanner | -7/Data Miner | Free Plasma Sword | -7/Data Miner | Free Imp. Cesium-ion Thruster | -6/Factory | Hacked Imp. Hacking Suite | -6/Factory | Hacked Imp. System Shield | -6/Factory | Hacked Lgt. Angular Momentum Engine | -6/Factory | Hacked Robot Schematics ------------------ S-27 Virus | -7/Data Miner | Free G-50 Soldier | -7/Data Miner | Free G-67 Veteran | -7/Data Miner | Free L-41 Fighter | -7/Data Miner | Free X-72 Disruptor | -7/Data Miner | Free H-66 Slayer | -7/Data Miner | Free P-70 Sage | -7/Data Miner | Free I-36 Angel | -7/Data Miner | Free I-47 Archangel | -7/Data Miner | Free Fabricated ------------ Imp. Utility Shielding | x2 | -7/Factory Imp. Cesium-ion Thruster | x1 | -6/Factory Imp. Cesium-ion Thruster | x1 | -6/Factory Imp. Cesium-ion Thruster | x1 | -6/Factory Imp. Cesium-ion Thruster | x1 | -6/Factory Alien Tech Used ----------------- Core Expander Achievements -------------- None Challenges ------------ None Game ------ Seed LayeredTractorRail Manual? 0 Play Time 02:29:21 Cumulative 686.3 hours Start 2020.03.30 @ 11:39:01 End 2020.03.30 @ 18:03:12 Sessions 4 Manual Loads 0 Difficulty Rogue Special Mode None Game No. 431 Rogue 431 Adventurer 0 Explorer 0 Win Type - Total 105 Types 71/6/8/10/5/1/4 Lore% 97 Gallery% 95 Achievement% 80 Wizard Run 0 Options --------- ASCII 0 Keyboard 0 Movement Numpad Keybinds 0 Fullscreen 2 Font 18/SmallcapsGlow Map View 76x50 Tactical HUD 1 Map Filters NONE Filters NONE Steam 1 RUN: 5996f76e-1a7f-4f6c-b616-9230fe704fe0